Cogmind - Beta 14 @@@ ROGUE MODE // 2024.11.05 @ 03:37:42 Player: laeb2 Result: Core destroyed Performance ------------- Evolutions (0) 0 Regions Visited (1) 200 Robots Destroyed (17) 85 Value Destroyed (342) 342 Prototype IDs (0) 0 Alien Tech Used (0) 0 Bonus (0) 0 TOTAL SCORE: 627 Bonus ------- None Cogmind --------- Core Integrity 0/250 Matter 229/300 Energy 139/160 System Corruption 0% Temperature Critical (560) Movement Core (250) Ox4 Location -10/Materials Parts ------- > --- POWER (1) -------- Light Nuclear Core > --- PROPULSION (2) --- (None) > --- UTILITY (2) ------ Small Storage Unit Seismic Detector > --- WEAPON (2) ------- Small Laser Particle Gun > --- INVENTORY (8) ---- Light Ion Engine Improved Treads Improved Treads Improved Heat Sink Signal Interpreter Assault Rifle Light Assault Rifle Mining Laser Peak State ------------ > --- POWER ------------ Light Nuclear Core > --- PROPULSION ------- Improved Treads Improved Treads > --- UTILITY ---------- Small Storage Unit Seismic Detector > --- WEAPON ----------- Small Laser Particle Gun > --- INVENTORY -------- Light Ion Engine Improved Treads Improved Treads Aluminum Leg Aluminum Leg Improved Heat Sink Seismic Detector Mining Laser [Rating: 13] Favorites ----------- Power Ion Engine Engine Ion Engine Power Core Light Nuclear Core Propulsion Improved Treads Treads Improved Treads Utility Small Storage Unit Device Seismic Detector Storage Small Storage Unit Weapon Small Laser Energy Gun Small Laser Ballistic Gun Light Assault Rifle Build | -11 -10 ------- Run | Yrd Mat Slots Evolved . | . . Power . | . . Propulsion . | . . Utility . | . . Weapon . | . . Parts Attached 14 | 7 7 Power 2 | 1 1 Engine 1 | 1 . Core 1 | . 1 Reactor . | . . Propulsion 4 | 2 2 Treads 4 | 2 2 Leg . | . . Wheel . | . . Hover . | . . Flight . | . . Utility 4 | 2 2 Device 1 | 1 . Storage 3 | 1 2 Processor . | . . Hackware . | . . Protection . | . . Artifact . | . . Weapon 4 | 2 2 Energy Gun 3 | 2 1 Energy Cannon . | . . Ballistic Gun 1 | . 1 Ballistic Cannon . | . . Launcher . | . . Special Weapon . | . . Impact Weapon . | . . Slashing Weapon . | . . Piercing Weapon . | . . Special Melee Weapon . | . . Unidentified Prototypes . | . . Parts Lost 4 | . 4 Power . | . . Propulsion 2 | . 2 Utility . | . . Weapon 2 | . 2 Highest Loss Streak 2 | . 2 To Critical Strikes . | . . Average Slot Usage (%) 99 | . 99 Engine 6 | . 6 Core 7 | . 7 Treads 27 | . 27 Device 14 | . 14 Storage 14 | . 14 Energy Gun 27 | . 27 Peak Build Rating 13 | 7 13 Average Rating 9 | 5 10 On Entrance 3 | . 7 Naked Turns . | . . Heaviest Build 15 | 13 15 Greatest Support 46 | 40 46 Greatest Overweight (x) 4 | . 4 Average Overweight (x) . | . . Largest Inventory Capacity 25 | 8 25 Average Capacity 7 | 7 8 Most Carried 9 | 6 9 Average Carried 7 | 4 7 Final Capacity 8 | 8 8 Final Carried 8 | 6 8 Class Distribution -------------------- 100% | Mutant Dominant Class ---------------- Mutant | -10/Materials Resources | -11 -10 ----------- Run | Yrd Mat Matter Collected 344 | 270 74 Remotely . | . . Salvage Created 553 | 151 402 Parts 39 | 16 23 Haulers Intercepted 1 | . 1 Recyclers Shooed . | . . Parts Field Recycled . | . . Retrieved Matter . | . . Parts Self-Destructed . | . . Prevented . | . . Kills | -11 -10 ------- Run | Yrd Mat Combat Hostiles Destroyed 7 | . 7 Guns 7 | . 7 Classes Destroyed 6 | 2 4 Tunneler 5 | 5 . Hauler 1 | . 1 Recycler 1 | 1 . Operator 1 | . 1 Watcher 2 | . 2 Grunt 7 | . 7 Best Kill Streak 3 | 3 2 Combat Bots Only 2 | . 2 Max Kills in Single Turn 1 | 1 1 Gunslinging . | . . Exploded . | . . Melee . | . . Uniques/NPCs Destroyed . | . . Combat | -11 -10 -------- Run | Yrd Mat Hostile Shots Fired 72 | . 72 Missed 8 | . 8 Damage Taken 915 | . 915 Core 273 | . 273 Absorbed by Shields . | . . Core Remaining (%) 100 | 100 . Volleys Fired 58 | 11 47 Largest 2 | 2 2 Hottest 105 | 80 105 Shots Fired 112 | 22 90 Gun 112 | 22 90 Cannon . | . . Launcher . | . . Special . | . . Kinetic 9 | . 9 Thermal 103 | 22 81 Explosive . | . . Electromagnetic . | . . Robot Hit Streak 11 | 8 11 Robot Miss Streak 5 | 1 5 Penetration Max . | . . Secondary Targets 1 | . 1 Max Gunslinging Chain 1 | . 1 Shots Hit Robots 73 | 16 57 Core Hits 31 | 7 24 Critical Kills . | . . Critical Parts Destroyed . | . . Critical Strikes . | . . Melee Attacks . | . . Impact . | . . Slashing . | . . Piercing . | . . Sneak Attacks . | . . Combat Hostiles . | . . Follow-up Attacks . | . . Damage Inflicted 846 | 183 663 Guns 846 | 183 663 Cannons . | . . Explosions . | . . Melee . | . . Ramming . | . . Kinetic 62 | . 62 Thermal 784 | 183 601 Explosive . | . . Electromagnetic . | . . Impact . | . . Slashing . | . . Piercing . | . . Highest Corruption . | . . Average Corruption . | . . Corruption Purged . | . . Corruption Blocked . | . . Overload Shots . | . . Overflow Damage . | . . Projectiles . | . . Explosions . | . . Melee . | . . Knockbacks . | . . Impact . | . . Kinetic . | . . Secondary . | . . Self-Inflicted Damage . | . . Shots . | . . Rammed 1 | . 1 Targets Rammed 1 | . 1 Kicked . | . . Crushed . | . . Highest Temperature 628 | 108 628 Average Temperature 124 | 43 140 Received Heat Transfer 495 | . 495 Effects 8 | . 8 Shutdowns 2 | . 2 Energy Bleed 1 | . 1 Matter Decay 2 | . 2 Damage (core) 3 | . 3 Siege Activations . | . . Robots Corrupted . | . . Combat Hostiles . | . . Parts Fried . | . . Impact Corruptions . | . . Robots Melted . | . . Combat Hostiles . | . . Parts Melted 8 | 4 4 Heat Transferred 1794 | 425 1369 Parts Sabotaged . | . . Parts Stolen . | . . Parts Stripped . | . . Power Chain Reactions . | . . Alert | -11 -10 ------- Run | Yrd Mat Peak Influence 100 | 30 100 Initial 19 | . 19 Average 38 | 12 43 Maximum Alert Level . | . . Low Security (%) 100 | 100 100 Level 1 . | . . Level 2 . | . . Level 3 . | . . Level 4 . | . . Level 5 . | . . High Security . | . . Max Security . | . . Squads Dispatched 4 | . 4 Investigation 2 | . 2 Extermination . | . . Reinforcement 2 | . 2 Assault . | . . Garrison . | . . Intercept . | . . Searches Triggered . | . . Construction Impeded . | . . Haulers Reinforced . | . . Active Scanning Responses . | . . Cargo Convoy Interrupts . | . . Stealth | -11 -10 --------- Run | Yrd Mat Distress Signals 2 | . 2 Communications Jammed . | . . Distress Signals . | . . Times Spotted 13 | . 13 Peak Tracking Total 3 | . 3 Tactical Retreats . | . . Traps | -11 -10 ------- Run | Yrd Mat Traps Triggered 2 | . 2 Indirectly . | . . Trap Hack Attempts . | . . Triggered . | . . Disarmed . | . . Reprogrammed . | . . Reused . | . . Traps Extracted . | . . Installed . | . . Triggered . | . . Machines | -11 -10 ---------- Run | Yrd Mat Machines Disabled . | . . Max in Single Turn . | . . Machines Repaired . | . . Machines Dismantled . | . . Machines Sabotaged . | . . Overloaded Fab Kills . | . . Hacking | -11 -10 --------- Run | Yrd Mat Machines Accessed 2 | . 2 Terminals 2 | . 2 Fabricators . | . . Repair Stations . | . . Recycling Units . | . . Scanalyzers . | . . Garrison Access . | . . Total Hacks 5 | . 5 Successful 3 | . 3 Failed 1 | . 1 Catastrophic . | . . Database Lockouts 1 | . 1 Manual 11 | . 11 Terminals 5 | . 5 Fabricators . | . . Repair Stations . | . . Recycling Units . | . . Scanalyzers . | . . Garrison Access . | . . Terminal Hacks 3 | . 3 Robot Analysis 1 | . 1 Locate Traps 1 | . 1 Hauler Manifests 1 | . 1 Fabricator Hacks . | . . Repair Station Hacks . | . . Recycling Unit Hacks . | . . Scanalyzer . | . . Garrison Access Hacks . | . . Unauthorized Hacks . | . . Terminals . | . . Fabricators . | . . Repair Stations . | . . Recycling Units . | . . Scanalyzers . | . . Garrison Access . | . . Data Cores Recovered . | . . Used . | . . Hacking Detections 1 | . 1 Full Trace Events 1 | . 1 Feedback Events . | . . Feedback Blocked . | . . Robot Schematics Acquired . | . . Robots Built . | . . Authchips . | . . Time . | . . Total Robot Build Rating . | . . Part Schematics Acquired . | . . Parts Built . | . . Authchips . | . . Time . | . . Total Part Build Rating . | . . Parts Repaired . | . . Time . | . . Parts Recycled . | . . Recycled Matter . | . . Retrieved Matter . | . . Retrieved Components . | . . Parts Scanalyzed . | . . Part Schematics Acquired . | . . Parts Damaged . | . . Bothacking | -11 -10 ------------ Run | Yrd Mat Used RIF Installer . | . . Robots Hacked . | . . Non-combat . | . . Combat . | . . Robot Hacks Applied . | . . Relay Couplers Released . | . . Fabnet Peak Effective % . | . . Robots Rewired . | . . Allies Hacked . | . . Hacks Repelled . | . . Allies | -11 -10 -------- Run | Yrd Mat Total Allies . | . . Largest Group . | . . Highest-Rated Group . | . . Highest-Rated Ally . | . . Total Orders . | . . Ally Attacks . | . . Total Damage . | . . Kills . | . . Allies Corrupted . | . . Allies Melted . | . . Intel | -11 -10 ------- Run | Yrd Mat Robot Analysis Total 1 | . 1 Derelict Logs Recovered . | . . Drone Launches . | . . Drone Recoveries . | . . Exploration | -11 -10 ------------- Run | Yrd Mat Turns Passed 1133 | 186 947 Spaces Moved 472 | 92 380 Core 12 | 11 1 Treads 460 | 81 379 Legs . | . . Wheels . | . . Hover . | . . Flight . | . . Fastest Speed 50 | 50 160 Average Speed 157 | 146 160 Slowest Speed 250 | 160 250 Overloaded Moves . | . . Propulsion Burnouts . | . . Robots Hopped . | . . Cave-ins Triggered . | . . Exploration Rate (%) 25 | 5 46 Regions Visited 1 Branch Regions . Pre-discovered Areas . | . . Known Exits Taken . | . . Unknown Exits Taken 1 | 1 . Scrap Searched . | . . Spaces Dug . | . . Terrain Destroyed . | . . Melee . | . . Projectile . | . . AOE . | . . Terrain Rammed . | . . Walls Destroyed . | . . Machines Disabled . | . . Actions | -11 -10 --------- Run | Yrd Mat Total 755 | 121 634 Wait 178 | . 178 Move 471 | 91 380 Hop . | . . Pick Up 23 | 12 11 Fast Attach 1 | 1 . Attach 8 | 6 2 Detach . | . . Swap 5 | . 5 Drop 10 | . 10 Fire 58 | 11 47 Melee . | . . Ram . | . . Kick . | . . Crush 1 | . 1 Escape Stasis . | . . Rewire . | . . Trap . | . . Miscellaneous . | . . Route ------- -11/Scrapyard -10/Materials (discovered 2 exits: [*Min x2]) History --------- Turn | Location | Event 9 | -11/Scrapyard | Discovered new exit (range 16) 187 | -11/Scrapyard | Entered Materials 302 | -10/Materials | Build established: Mutant 334 | -10/Materials | Discovered new exit (range 7) 493 | -10/Materials | Discovered new exit (range 10) 849 | -10/Materials | Central database locked down 1114 | -10/Materials | Core integrity fell below 50% 1130 | -10/Materials | Core integrity fell below 20% 1135 | -10/Materials | Core destroyed Last Messages --------------- >>Manifests Retrieving manifest data... Found 1 hauler: A-02 Transporter 6x Sml. Laser G-34 Mercenary destroyed. W-16 Scout sends out distress signal. Signal Interpreter melted. W-16 Scout destroyed. Imp. Treads destroyed. Overheating: Matter decay (-48). Power failure, Lgt. Nuclear Core shutdown. Overheating: Energy bleed (-38). Imp. Treads destroyed. G-34 Mercenary destroyed. Overheating: Core damaged (-47). Overheating: Matter decay (-28). Power failure, Lgt. Nuclear Core shutdown. Overheating: Core damaged (-47). Overheating: Core damaged (-25). Map ----- +----------------------------------------------------+ | | | | | | | | | ????????????????????????????????????? | | #####????????????????????#####??????? | | #!! ######################"T"#####??? | | #!! ^ T #??? | | # = ^ #??? | | #== ^ #??? | | #// ################## #??? | | #// #? #???????# #??? | | ##### #?"" #???????# #??? | | ??### #""" #???????#!%= #??? | | ### #""" #???????# ! """ #??? | | # + #???????# """ #??? | | + #""" #???##### """ #??? | | # #""" #???# # #??? | | # #?"" #???# # % * #??? | | % # #? #???# # #??? | | =%+ #######??????# # #??? | | *=# # ######## # %=##/##+#??? | | %# # """ # # ##*## ????? | | # # """ # # ## ## """ ??? | | ### # """ # # ## ## """ #?? | | ??# # # # ##@## """ #?? | | ??# + # """ # ## ## #?? | | ### # " " # """ # ## ## [ #?? | | ## # "R" # """ # ##/#########?? | | # """ # + # % #???? | | # # """ # # """ #???? | | ####### """ # # """ #???? | | ###+######## """ # # | """ #???? | | ##?# # # # #???? | | #??# """ ######## + """ #???? | | #??# """ # # """ #???? | | #??# """ + # """ #???? | | #??# # # #???? | | "??# ! #########+###########???? | | ?# ! #???# #?????????? | | |"# = ! #???# #?????????? | | ""# #???# """ """ #########?? | | !"###########??# """ """ + #?? | | "# #??# """ """ ##### #?? | | """# #??# #???# #?? | | #### #??# ! ##### #?? | | #??# #??# + #?? | | #??# #??############# #?? | | ???# #?##########???# #?? | | ???# ![ #?# #???# #?? | +----------------------------------------------------+ Best States ------------- Heat Dissipation 25 Energy Generation 14 Energy Capacity 250 Matter Stores 300 Matter Capacity 300 Sight Range 16 Terrain Scan Density 10 Evasion (%) 50 Recoil Reduction 2 Item Schematics ----------------- None Robot Schematics ------------------ None Fabricated ------------ Nothing Alien Tech Used ----------------- None Achievements -------------- None Challenges ------------ None Game ------ Seed TeleporterWarlordMatrix Manual? 0 Play Time 00:06:46 Cumulative 74.0 hours Start 2024.11.05 @ 03:31:52 End 2024.11.05 @ 03:37:42 Sessions 1 Manual Loads 0 Difficulty Rogue Special Mode None Game No. 92 Rogue 92 Adventurer 0 Explorer 0 Win Type - Total 1 Types 1/0/0/0/0/0/0/0/0 Lore% 51 Gallery% 53 Achievement% 50 Wizard Run 0 Options --------- Layout 1 ASCII 0 Keyboard 0 Movement Mouse Keybinds 0 Fullscreen 1 Font 32/SmallcapsGlow Map View 50x35 Zoom Use 0% Tactical HUD 0 Map Filters NONE Filters NONE Steam 1 RUN: bb125ad2-83de-4a08-93b3-a57c9c02fa27